bitfinex-derivatives/quotes_BTCF0:USTF0_20240815
["timestamp","ask_amount","ask_price","bid_price","bid_amount"]
[1723732700266,0.37995583,59609.0,59608.0,0.083877]
[1723732700756,0.371,59609.0,59608.0,0.083877]
[1723732703158,0.454876,59609.0,59608.0,0.083877]
[1723732703962,0.083879,59607.0,59606.0,0.235778]
[1723732704160,0.563879,59607.0,59606.0,0.083878]
[1723732704355,0.563879,59607.0,59603.0,0.00025167]
[1723732704356,0.083883,59604.0,59603.0,0.00025167]
[1723732704560,0.64223603,59604.0,59603.0,0.00025167]
[1723732704763,1.12849751,59604.0,59597.0,0.083893]
[1723732705071,0.083896,59595.0,59594.0,0.083896]
[1723732705275,0.53,59595.0,59594.0,0.083896]
[1723732705770,0.613896,59595.0,59594.0,0.083896]
[1723732705970,1.0334,59595.0,59576.0,0.2903]
[1723732706268,0.083903,59590.0,59589.0,0.00025167]
[1723732706459,0.603903,59590.0,59589.0,0.00025167]
[1723732706662,0.52,59590.0,59589.0,0.08415567]
[1723732706962,0.52,59590.0,59578.0,0.1413]
[1723732707168,0.3608,59580.0,59579.0,0.083918]
[1723732707364,0.5308,59580.0,59579.0,0.083918]
[1723732707773,0.5408,59580.0,59579.0,0.083918]
[1723732708069,0.17,59580.0,59579.0,0.083918]
[1723732708278,0.06682448,59584.0,59583.0,0.083913]
[1723732708279,0.05011101,59584.0,59583.0,0.083913]
[1723732708464,0.21011101,59584.0,59583.0,0.083913]
[1723732708775,0.16,59584.0,59583.0,0.083913]
[1723732709076,0.18,59584.0,59583.0,0.083913]
[1723732709572,0.184,59584.0,59583.0,0.083913]
[1723732710067,0.23411101,59584.0,59583.0,0.083913]
[1723732710272,0.23911101,59584.0,59583.0,0.083913]
[1723732710472,0.189,59584.0,59583.0,0.083913]
[1723732711264,0.69248,59584.0,59578.0,0.1413]
[1723732711464,0.3608,59580.0,59574.0,0.00025167]
[1723732711670,0.08392,59578.0,59574.0,0.08417667]
[1723732711867,0.3608,59575.0,59574.0,0.08417667]
[1723732712171,0.8808,59575.0,59574.0,0.08417667]
[1723732712358,0.964724,59575.0,59574.0,0.08417667]
[1723732712972,1.468284,59575.0,59574.0,0.00525167]
[1723732713172,0.083938,59565.0,59552.0,0.04993022]
[1723732713366,0.083938,59565.0,59553.0,0.083954]
[1723732713367,0.874738,59565.0,59553.0,0.083954]
[1723732713571,0.874738,59565.0,59550.0,0.221658]
[1723732714073,0.083945,59561.0,59559.0,0.083946]
[1723732714375,0.083945,59560.0,59559.0,0.083946]
[1723732714574,0.25,59560.0,59559.0,0.08419767]
[1723732715077,0.25013394,59560.0,59559.0,0.08419767]
[1723732715259,0.33407894,59560.0,59559.0,0.08419767]
[1723732715464,0.33507894,59560.0,59559.0,0.00025167]
[1723732715669,0.77982394,59560.0,59559.0,0.00025167]
[1723732715895,0.61193394,59560.0,59550.0,0.221658]
[1723732716059,0.3608,59554.0,59553.0,0.083955]
[1723732716263,0.55096941,59554.0,59553.0,0.083955]
[1723732716972,0.15016941,59554.0,59553.0,0.16791]
[1723732717173,0.17016941,59554.0,59553.0,0.16791]
[1723732718074,0.17016941,59554.0,59553.0,0.256865]
[1723732718572,0.16016941,59554.0,59553.0,0.621665]
[1723732718769,0.13873599,59554.0,59553.0,0.621665]
[1723732718963,0.14873599,59554.0,59553.0,0.621665]
[1723732719170,0.00025167,59566.0,59553.0,1.27356]
[1723732719474,0.3608,59576.0,59564.0,0.6511]
[1723732719670,0.5208,59576.0,59575.0,0.167848]
[1723732720274,0.634722,59576.0,59575.0,0.083924]
[1723732720570,0.5508,59576.0,59575.0,0.083924]
[1723732721167,0.5508,59576.0,59575.0,0.167848]
[1723732721369,0.5208,59576.0,59575.0,0.083924]
[1723732721779,0.5608,59576.0,59575.0,0.083924]
[1723732722170,0.5598,59576.0,59575.0,0.084924]
[1723732722364,0.5598,59576.0,59575.0,0.17807606]
[1723732722566,0.5598,59576.0,59575.0,0.53887606]
[1723732722567,0.169,59576.0,59575.0,0.53887606]
[1723732722866,0.17,59576.0,59575.0,0.53887606]
[1723732724572,0.165,59576.0,59575.0,0.45395206]
[1723732724779,0.196,59576.0,59575.0,0.17707606]
[1723732724978,0.162,59576.0,59575.0,0.17707606]
[1723732725371,0.182,59576.0,59575.0,0.09315206]
[1723732725778,0.181,59576.0,59575.0,0.09315206]
[1723732725980,0.083929,59573.0,59572.0,0.083928]
[1723732726175,0.083929,59571.0,59570.0,0.00025167]
[1723732726376,1.448329,59571.0,59570.0,0.00025167]
[1723732726678,0.083936,59567.0,59565.0,0.083937]
[1723732726887,0.3608,59566.0,59565.0,0.083937]
[1723732727069,0.9008,59566.0,59565.0,0.083937]
[1723732728185,0.54,59566.0,59565.0,0.083937]
[1723732729085,0.002,59566.0,59565.0,0.776453]
[1723732729274,0.002,59566.0,59565.0,0.272813]
[1723732731682,0.232,59566.0,59565.0,0.272813]
[1723732732684,0.402,59566.0,59565.0,0.272813]
[1723732734373,0.846736,59566.0,59565.0,0.104937]
[1723732734682,0.846736,59566.0,59565.0,0.021]
[1723732735789,1.350376,59566.0,59565.0,0.021]
[1723732736277,1.35943449,59566.0,59565.0,0.104938]
[1723732736477,0.083941,59563.0,59562.0,0.083941]
[1723732736678,0.650834,59563.0,59562.0,0.083941]
[1723732736888,0.566893,59563.0,59562.0,0.083941]
[1723732737094,0.5,59563.0,59562.0,0.251825]
[1723732737885,0.003,59566.0,59565.0,0.167876]
[1723732738079,0.00025167,59568.0,59567.0,0.33574]
[1723732738283,0.3608,59583.0,59567.0,0.33574]
[1723732738284,0.05015936,59577.0,59576.0,0.083922]
[1723732738474,0.21015936,59577.0,59576.0,0.596744]
[1723732738678,0.16,59577.0,59576.0,0.596744]
[1723732738980,0.21015936,59577.0,59576.0,0.596744]
[1723732739283,0.16,59577.0,59576.0,0.369022]
[1723732739484,0.162,59577.0,59576.0,0.369022]
[1723732741379,0.21217956,59577.0,59576.0,0.371022]
[1723732741881,0.162,59577.0,59576.0,0.085922]
[1723732742083,0.162,59577.0,59576.0,0.004]
[1723732742084,0.243921,59577.0,59576.0,0.004]
[1723732742789,0.083927,59573.0,59572.0,0.083928]
[1723732742989,0.71271116,59573.0,59572.0,0.083928]
[1723732743680,0.62878416,59573.0,59572.0,0.083928]
[1723732743987,0.71271116,59573.0,59572.0,0.083928]
[1723732744786,0.57,59573.0,59572.0,0.085928]
[1723732745183,0.62018613,59573.0,59572.0,0.253784]
[1723732745379,0.57,59573.0,59572.0,0.698512]
[1723732745981,0.57,59573.0,59572.0,0.700512]
[1723732746677,0.17,59573.0,59572.0,0.700512]
[1723732746982,0.00201004,59579.0,59577.0,0.083921]
[1723732747185,0.00201004,59579.0,59578.0,0.89746]
[1723732747186,0.14,59579.0,59578.0,0.89746]
[1723732747495,0.14,59579.0,59578.0,0.53666]
[1723732748186,0.14,59579.0,59578.0,0.45274]
[1723732748382,0.146,59579.0,59578.0,0.45374]
[1723732748782,0.146,59579.0,59578.0,0.54684433]
[1723732748977,0.15,59579.0,59578.0,0.59671747]
[1723732749179,0.15,59579.0,59578.0,0.54684433]
[1723732749788,0.1404168,59579.0,59578.0,0.54684433]
[1723732749987,0.36025167,59582.0,59581.0,0.251745]
[1723732749988,0.00025167,59582.0,59581.0,0.251745]
[1723732750188,0.17025167,59582.0,59581.0,0.30158555]
[1723732750395,0.00025167,59582.0,59581.0,0.30158555]
[1723732750591,0.00025167,59582.0,59581.0,0.251745]
[1723732750791,0.16025167,59582.0,59581.0,0.16783]
[1723732750985,0.16025167,59582.0,59581.0,0.230515]
[1723732751193,0.16025167,59582.0,59581.0,0.31443]
[1723732751488,0.16025167,59582.0,59581.0,0.231515]
[1723732751489,0.16925167,59582.0,59581.0,0.231515]
[1723732751683,0.16925167,59582.0,59581.0,0.084915]
[1723732751888,0.25316567,59582.0,59581.0,0.001]
[1723732752089,0.2625059,59582.0,59581.0,0.001]
[1723732752291,1.0901119,59582.0,59572.0,0.00893635]
[1723732752494,0.3608,59577.0,59571.0,0.36105167]
[1723732752683,0.8308,59577.0,59571.0,0.36105167]
[1723732752890,0.8308,59577.0,59576.0,0.083922]
[1723732754389,0.8308,59577.0,59576.0,0.167844]
[1723732755792,0.8308,59577.0,59576.0,0.083922]
[1723732755793,0.8338,59577.0,59576.0,0.083922]
[1723732755991,0.8358,59577.0,59576.0,0.083922]
[1723732756295,0.90270115,59577.0,59576.0,0.083922]
[1723732756597,0.8358,59577.0,59576.0,0.083922]
[1723732756982,0.8358,59577.0,59571.0,0.36105167]
[1723732756983,0.919721,59577.0,59573.0,0.083926]
[1723732757188,0.083928,59572.0,59571.0,0.00025167]
[1723732757386,0.59691414,59572.0,59571.0,0.08417967]
[1723732758697,0.53,59572.0,59571.0,0.17110867]
[1723732758900,0.59693637,59572.0,59571.0,0.17110867]
[1723732759088,0.06693637,59580.0,59577.0,0.083921]
[1723732759296,0.06693637,59580.0,59572.0,0.083928]
[1723732759297,0.17,59580.0,59579.0,0.251754]
[1723732759990,0.17,59580.0,59579.0,0.335672]
[1723732760999,0.18,59580.0,59579.0,0.335672]
[1723732761199,0.187,59580.0,59579.0,0.336672]
[1723732761812,0.00025167,59582.0,59581.0,0.33566]
[1723732761990,0.06693637,59593.0,59592.0,0.0839]
[1723732762189,0.06693637,59594.0,59593.0,0.083898]
[1723732762394,0.23,59595.0,59594.0,0.083897]
[1723732762395,0.07523949,59595.0,59594.0,0.083897]
[1723732762597,0.20687858,59595.0,59594.0,0.167794]
[1723732762899,0.21687858,59595.0,59594.0,0.167794]
[1723732763292,0.22687858,59595.0,59594.0,0.167794]
[1723732764093,0.16,59595.0,59594.0,0.167794]
[1723732764701,0.083898,59593.0,59592.0,0.001]
[1723732765006,0.964698,59593.0,59592.0,0.0849]
[1723732765298,1.468098,59593.0,59592.0,0.0849]
[1723732765493,0.964698,59593.0,59592.0,0.0849]
[1723732765693,0.964698,59593.0,59592.0,0.0839]
[1723732766606,0.978698,59593.0,59592.0,0.0849]
[1723732766904,0.978698,59593.0,59592.0,0.001]
[1723732767104,0.986698,59593.0,59592.0,0.002]
[1723732767598,1.07042278,59593.0,59592.0,0.0859]
[1723732767805,0.98652478,59593.0,59590.0,0.083901]
[1723732768005,0.083901,59591.0,59590.0,0.083901]
[1723732768304,0.613901,59591.0,59590.0,0.083901]
[1723732769703,0.613901,59591.0,59590.0,0.084901]
[1723732769901,0.53,59591.0,59590.0,0.084901]
[1723732770100,0.53,59591.0,59590.0,0.168804]
[1723732770499,0.539,59591.0,59590.0,0.253707]
[1723732771599,0.553,59591.0,59590.0,0.252707]
[1723732771899,0.06692244,59601.0,59596.0,0.083894]
[1723732772101,0.36025167,59600.0,59599.0,0.61247]
[1723732773500,0.36425167,59600.0,59599.0,0.61247]
[1723732773994,0.36425167,59600.0,59599.0,0.74867]
[1723732774608,0.36425167,59600.0,59599.0,0.75792308]
[1723732774792,0.36425167,59600.0,59599.0,0.67403308]
[1723732775506,0.36425167,59600.0,59599.0,0.31323308]
[1723732777390,0.36425167,59600.0,59599.0,0.39712308]
[1723732777591,0.14425167,59600.0,59599.0,0.39712308]
[1723732778497,0.06692244,59615.0,59612.0,0.251616]
[1723732778697,0.15,59613.0,59612.0,0.251616]
[1723732779509,0.15,59613.0,59612.0,0.314744]
[1723732779700,0.16,59613.0,59612.0,0.315744]
[1723732779901,0.39,59613.0,59612.0,0.315744]
[1723732780101,0.83467,59613.0,59612.0,0.231872]
[1723732780303,0.83467,59613.0,59612.0,0.084872]
[1723732780509,0.84383158,59613.0,59612.0,0.084872]
[1723732780904,0.83383158,59613.0,59612.0,0.083872]
[1723732781101,0.7458,59613.0,59612.0,0.167744]
[1723732781497,0.7458,59613.0,59612.0,0.251616]
[1723732781802,0.5158,59613.0,59612.0,0.167744]
[1723732782303,0.5358,59613.0,59612.0,0.083872]
[1723732784103,0.5358,59613.0,59612.0,0.167744]
[1723732784404,0.175,59613.0,59612.0,0.167744]
[1723732784805,0.175,59613.0,59612.0,0.251616]
[1723732785011,0.175,59613.0,59612.0,0.167744]
[1723732794105,0.175,59613.0,59612.0,0.083872]
[1723732794819,0.25887,59613.0,59612.0,0.083872]
[1723732797105,0.32579244,59613.0,59612.0,0.083872]
[1723732797915,0.25887,59613.0,59612.0,0.083872]
[1723732798514,0.175,59613.0,59612.0,0.083872]
[1723732799217,0.083878,59608.0,59607.0,0.08412967]
[1723732799421,0.083882,59607.0,59606.0,0.083879]
[1723732799628,0.613882,59607.0,59606.0,0.083879]
[1723732800117,0.69750765,59607.0,59606.0,0.083879]
[1723732800719,0.69750765,59607.0,59601.0,0.00935528]
[1723732800720,0.083886,59602.0,59601.0,0.08413867]
[1723732801020,0.954686,59602.0,59601.0,0.08413867]
[1723732801224,0.95448423,59602.0,59601.0,0.08413867]
[1723732801409,0.8708,59602.0,59601.0,0.08413867]
[1723732802021,0.954686,59602.0,59601.0,0.08413867]
[1723732802208,1.03837023,59602.0,59601.0,0.00025167]
[1723732802814,0.954686,59602.0,59601.0,0.00025167]
[1723732803321,0.9818828,59602.0,59601.0,0.00025167]
[1723732803523,1.0717688,59602.0,59601.0,1e-08]
[1723732803726,0.9878828,59602.0,59601.0,1e-08]
[1723732804426,0.960686,59602.0,59601.0,1e-08]
[1723732804623,0.98788355,59602.0,59601.0,1e-08]
[1723732805223,0.98788355,59602.0,59601.0,0.08388701]
[1723732805424,0.96045478,59602.0,59601.0,0.08388701]
[1723732805624,0.8768,59602.0,59601.0,0.16777401]
[1723732806020,0.8708,59602.0,59601.0,0.167774]
[1723732806217,0.8768,59602.0,59601.0,0.168774]
[1723732806525,0.516,59602.0,59601.0,1.239908]
[1723732806724,0.10316727,59602.0,59601.0,1.239908]
[1723732806923,0.06691822,59611.0,59607.0,0.083879]
[1723732807126,0.32,59611.0,59610.0,0.16775]
[1723732807424,0.16,59611.0,59610.0,0.16775]
[1723732807632,0.16,59611.0,59610.0,0.251625]
[1723732808729,0.39091822,59617.0,59616.0,0.083866]
[1723732808923,0.79091822,59617.0,59616.0,0.083866]
[1723732810130,0.79091822,59617.0,59616.0,0.167732]
[1723732810328,0.79091822,59617.0,59616.0,0.168732]
[1723732810536,0.79091822,59617.0,59616.0,0.084866]
[1723732811124,0.79091822,59617.0,59616.0,0.09395036]
[1723732811436,0.79191822,59617.0,59616.0,0.09495036]
[1723732811617,1.32044822,59617.0,59616.0,0.001]
[1723732811817,0.083872,59612.0,59611.0,0.23521167]
[1723732812017,1.06157227,59612.0,59611.0,0.23521167]
[1723732812225,0.9108,59612.0,59611.0,0.31908467]
[1723732813118,0.97770118,59612.0,59611.0,0.40295767]
[1723732813328,0.97770118,59612.0,59611.0,0.48683067]
[1723732813329,0.55,59612.0,59611.0,0.48683067]
[1723732813529,0.402,59612.0,59611.0,1.75087067]
[1723732814334,0.4,59612.0,59611.0,1.35087067]
[1723732814637,0.402,59612.0,59611.0,1.75087067]
[1723732814833,0.402,59612.0,59611.0,0.84763067]
[1723732815935,0.402,59612.0,59611.0,1.43474367]
[1723732816333,0.054,59612.0,59611.0,1.43474367]
[1723732816527,0.054,59612.0,59611.0,0.93150367]
[1723732817026,0.054,59612.0,59611.0,1.83474367]
[1723732817538,0.054,59612.0,59611.0,1.43474367]
[1723732817838,0.054,59612.0,59611.0,0.93150367]
[1723732818237,0.054,59612.0,59611.0,1.43474367]
[1723732818537,0.054,59612.0,59611.0,1.33150367]
[1723732818724,0.004,59612.0,59611.0,1.83474367]
[1723732818924,0.004,59612.0,59611.0,1.88456611]
[1723732819123,0.004,59612.0,59611.0,1.83474367]
[1723732819333,0.004,59612.0,59611.0,1.43474367]
[1723732819521,0.004,59612.0,59611.0,0.93150367]
[1723732820027,0.004,59612.0,59611.0,1.43474367]
[1723732820223,0.004,59612.0,59611.0,0.93150367]
[1723732820432,0.154,59612.0,59611.0,0.76375767]
[1723732821120,0.237872,59612.0,59611.0,0.00025167]
[1723732821321,0.237872,59612.0,59611.0,0.08412467]
[1723732821520,0.154,59612.0,59611.0,0.08412467]
[1723732821736,0.154,59612.0,59611.0,0.16799767]
[1723732823035,0.144,59612.0,59611.0,0.16799767]
[1723732823335,0.144,59612.0,59611.0,0.69654367]
[1723732823633,0.004,59612.0,59611.0,0.69654367]
[1723732824933,0.004,59612.0,59611.0,0.33574367]
[1723732825135,0.50328,59611.0,59597.0,0.02289972]
[1723732825338,0.3608,59598.0,59584.0,0.06643479]
[1723732825532,0.3608,59598.0,59578.0,0.1257]
[1723732825533,0.3608,59585.0,59582.0,0.083914]
[1723732825728,0.99767893,59585.0,59582.0,0.083913]
[1723732825927,0.06687893,59584.0,59578.0,0.1239]
[1723732826227,0.444719,59579.0,59576.0,0.1224]
[1723732826430,0.083921,59578.0,59576.0,0.206322]
[1723732826638,0.19,59578.0,59576.0,0.206322]
[1723732826838,0.19,59578.0,59575.0,0.00025167]
[1723732827141,0.444722,59576.0,59575.0,0.00025167]
[1723732827443,0.854722,59576.0,59575.0,0.00025167]
[1723732828338,0.5308,59576.0,59575.0,0.00225167]
[1723732828533,0.5208,59576.0,59575.0,0.00225167]
[1723732828730,0.5208,59576.0,59575.0,0.08617567]
[1723732829542,0.5208,59576.0,59575.0,0.08717567]
[1723732830636,0.5208,59576.0,59575.0,0.08517567]
[1723732830837,0.5208,59576.0,59575.0,0.08717567]
[1723732832335,0.3608,59576.0,59575.0,0.17109967]
[1723732832536,0.3608,59581.0,59575.0,1.35353567]
[1723732832741,0.324,59586.0,59580.0,0.083917]
[1723732833046,0.00025167,59587.0,59586.0,0.251724]
[1723732834449,0.00025167,59587.0,59586.0,0.167816]
[1723732834634,0.00525167,59587.0,59586.0,0.168816]
[1723732834837,1.91125267,59587.0,59586.0,0.001]
[1723732835232,1.9781316,59587.0,59586.0,0.001]
[1723732835647,1.9872568,59587.0,59586.0,0.001]
[1723732835841,1.9872568,59587.0,59586.0,0.002]
[1723732836239,2.1090829,59587.0,59586.0,0.002]
[1723732836440,2.1150829,59587.0,59586.0,0.002]
[1723732836652,2.17657743,59587.0,59586.0,0.003]
[1723732837146,2.17657617,59587.0,59586.0,0.003]
[1723732837351,2.1100829,59587.0,59586.0,0.001]
[1723732837645,2.1150829,59587.0,59586.0,0.002]
[1723732838348,1.92637787,59587.0,59586.0,0.002]
[1723732841750,2.10695425,59587.0,59586.0,0.002]
[1723732843146,0.251766,59576.0,59575.0,0.00025167]
[1723732843349,1.792244,59576.0,59575.0,0.00025167]
[1723732843550,2.695804,59576.0,59575.0,0.00025167]
[1723732844354,2.695804,59576.0,59575.0,0.00225167]
[1723732845444,2.695804,59576.0,59575.0,0.00325167]
[1723732846347,2.70485692,59576.0,59575.0,0.00325167]
[1723732847159,2.22093492,59576.0,59575.0,0.00325167]
[1723732848755,1.35457492,59576.0,59575.0,0.00325167]
[1723732848943,1.35457492,59576.0,59575.0,0.08717567]
[1723732848944,1.27065292,59576.0,59575.0,0.08717567]
[1723732849750,1.35457492,59576.0,59575.0,0.00325167]
[1723732850255,1.71737492,59576.0,59575.0,0.00325167]
[1723732851357,1.71737492,59576.0,59572.0,0.07925541]
[1723732851358,0.083927,59573.0,59572.0,0.07925541]
[1723732851557,0.563927,59573.0,59572.0,0.07925541]
[1723732851860,0.083929,59572.0,59570.0,0.083931]
[1723732852063,0.3608,59571.0,59570.0,0.083931]
[1723732852362,0.9108,59571.0,59570.0,0.083931]
[1723732853255,0.9108,59571.0,59570.0,0.089931]
[1723732853464,0.994729,59571.0,59570.0,0.089931]
[1723732853956,0.995729,59571.0,59570.0,0.096931]
[1723732854750,0.9118,59571.0,59570.0,0.096931]
[1723732855154,0.9118,59571.0,59570.0,0.090931]
[1723732855356,0.99642533,59571.0,59570.0,0.096931]
[1723732855767,0.9128,59571.0,59570.0,0.096931]
[1723732857666,0.996729,59571.0,59570.0,0.013]
[1723732858363,1.080658,59571.0,59570.0,0.013]
[1723732858867,0.996729,59571.0,59570.0,0.013]
[1723732859255,1.08038328,59571.0,59570.0,0.013]
[1723732859457,1.08038328,59571.0,59570.0,0.096931]
[1723732859665,0.99645428,59571.0,59570.0,0.096931]
[1723732859866,0.99645428,59571.0,59570.0,0.180862]
[1723732860275,0.5154,59571.0,59570.0,0.264793]
[1723732860565,0.00096,59574.0,59573.0,0.335708]
[1723732860767,0.06691302,59579.0,59578.0,0.08392]
[1723732861077,0.08365428,59584.0,59583.0,0.083913]
[1723732861078,0.06691302,59584.0,59583.0,0.083913]
[1723732861262,0.15,59584.0,59583.0,0.528626]
[1723732861774,0.06716469,59587.0,59583.0,1.26428]
[1723732862064,0.14025167,59587.0,59586.0,0.251724]
[1723732862659,0.26025167,59587.0,59586.0,0.083908]
[1723732863256,0.27325167,59587.0,59586.0,0.084908]
[1723732863461,0.16425167,59587.0,59586.0,0.085908]
[1723732864265,0.16425167,59587.0,59586.0,0.169816]
[1723732864473,0.16425167,59587.0,59586.0,0.085908]
[1723732864767,0.27425167,59587.0,59586.0,0.085908]
[1723732864965,0.35815867,59587.0,59586.0,0.085908]
[1723732865172,0.27425167,59587.0,59586.0,0.085908]
[1723732865363,0.26225167,59587.0,59586.0,0.084908]
[1723732866074,0.25125167,59587.0,59586.0,0.084908]
[1723732866961,0.25125167,59587.0,59586.0,0.168816]
[1723732867362,0.25125167,59587.0,59586.0,0.252724]
[1723732867963,0.25125167,59587.0,59586.0,0.084908]
[1723732869462,0.3013697,59587.0,59586.0,0.084908]
[1723732872666,0.69595867,59587.0,59586.0,0.084908]
[1723732872866,0.69595867,59587.0,59569.0,0.2903]
[1723732872867,1.85589322,59587.0,59578.0,0.00016851]
[1723732873069,0.374218,59579.0,59578.0,0.00016851]
[1723732873376,0.884218,59579.0,59578.0,0.00016851]
[1723732873571,0.08393,59571.0,59570.0,0.083931]
[1723732873764,0.5825163,59571.0,59570.0,0.083931]
[1723732874073,0.083931,59570.0,59568.0,0.3608]
[1723732874275,0.743731,59570.0,59568.0,0.3608]
[1723732874470,0.79380636,59570.0,59568.0,0.3608]
[1723732874667,0.743731,59570.0,59569.0,0.083932]
[1723732874872,0.54,59570.0,59569.0,0.083932]
[1723732875774,0.541,59570.0,59569.0,0.091932]
[1723732876281,0.67500636,59570.0,59569.0,0.091932]
[1723732876477,0.624931,59570.0,59569.0,0.008]
[1723732876864,0.59109712,59570.0,59569.0,0.008]
[1723732877069,0.59109712,59570.0,59569.0,0.091932]
[1723732877478,0.541,59570.0,59569.0,0.091932]
[1723732877974,0.625931,59570.0,59569.0,0.016]
[1723732878570,0.625931,59570.0,59564.0,0.00018838]
[1723732878770,0.083938,59565.0,59564.0,0.00018838]
[1723732878970,0.70074904,59565.0,59564.0,0.00018838]
[1723732879170,0.55,59565.0,59564.0,0.08412738]
[1723732879570,0.15,59565.0,59564.0,0.16806638]
[1723732879871,0.15,59565.0,59564.0,0.26200538]
[1723732880076,0.15,59565.0,59564.0,0.27000538]
[1723732880279,0.151,59565.0,59564.0,0.27000538]
[1723732880575,0.151,59565.0,59564.0,1.17364538]
[1723732880781,0.0501028,59572.0,59564.0,1.00576738]
[1723732880992,0.15,59572.0,59571.0,0.251787]
[1723732881179,0.42035447,59575.0,59571.0,0.251787]
[1723732881180,0.00025167,59575.0,59574.0,0.16785]
[1723732881378,0.00025167,59575.0,59574.0,0.251775]
[1723732881578,0.00025167,59575.0,59574.0,1.155335]
[1723732881781,0.02025167,59575.0,59574.0,1.155335]
[1723732882083,0.02025167,59575.0,59574.0,1.07141]
[1723732882278,0.02025167,59575.0,59574.0,1.155335]
[1723732882679,0.02025167,59575.0,59574.0,1.07141]
[1723732883279,0.02025167,59575.0,59574.0,0.16785]
[1723732883479,0.19025167,59575.0,59574.0,0.09134726]
[1723732883783,0.19025167,59575.0,59574.0,0.083925]
[1723732884077,0.083929,59571.0,59570.0,0.44473]
[1723732884284,0.58229023,59571.0,59570.0,0.3608]
[1723732885073,0.49836123,59571.0,59570.0,0.444731]
[1723732885273,0.49836123,59571.0,59570.0,0.447731]
[1723732885579,0.49936123,59571.0,59570.0,0.447731]
[1723732885788,0.49936123,59571.0,59570.0,0.531662]
[1723732886381,0.492,59571.0,59570.0,0.619593]
[1723732886572,0.332,59571.0,59570.0,1.123193]
[1723732887676,0.332,59571.0,59570.0,1.523193]
[1723732888278,0.332,59571.0,59570.0,1.123193]
[1723732888488,0.002,59571.0,59570.0,1.523193]
[1723732888681,0.00025167,59575.0,59574.0,0.251775]
[1723732888983,0.03025167,59575.0,59574.0,0.251775]
[1723732889281,0.03025167,59575.0,59574.0,0.755335]
[1723732889488,0.03025167,59575.0,59574.0,0.251775]
[1723732889681,0.19025167,59575.0,59574.0,0.251775]
[1723732889985,0.19025167,59575.0,59574.0,0.253775]
[1723732891075,0.19025167,59575.0,59574.0,0.254775]
[1723732891277,0.19025167,59575.0,59574.0,0.086925]
[1723732892179,0.19025167,59575.0,59574.0,0.17085]
[1723732892786,0.16025167,59575.0,59574.0,0.254775]
[1723732895090,0.16025167,59575.0,59574.0,0.376175]
[1723732897187,0.16025167,59575.0,59574.0,0.254775]
[1723732900300,0.38025167,59575.0,59574.0,0.254775]
[1723732900482,0.16025167,59575.0,59574.0,0.254775]
[1723732901785,0.37025167,59575.0,59574.0,0.17085]
[1723732903688,0.37025167,59575.0,59574.0,0.086925]
[1723732904080,0.58117567,59575.0,59574.0,0.086925]
[1723732904286,0.58117567,59575.0,59570.0,0.72981098]
[1723732904287,0.083925,59574.0,59570.0,0.08477]
[1723732904486,0.083925,59574.0,59564.0,0.00018838]
[1723732904487,0.444729,59571.0,59564.0,0.00018838]
[1723732904688,0.083936,59568.0,59567.0,0.083934]
[1723732904889,0.623936,59568.0,59567.0,0.083934]
[1723732905593,0.54,59568.0,59567.0,0.083934]
[1723732906386,0.541,59568.0,59567.0,0.088934]
[1723732907493,0.542,59568.0,59567.0,0.090934]
[1723732908088,0.542,59568.0,59567.0,0.619604]
[1723732908285,0.152,59568.0,59567.0,0.619604]
[1723732911183,0.20221575,59568.0,59567.0,0.619604]
[1723732912397,0.152,59568.0,59567.0,0.619604]
[1723732912597,0.20221575,59568.0,59567.0,0.619604]
[1723732913399,0.152,59568.0,59567.0,0.619604]
[1723732913600,0.20221947,59568.0,59567.0,0.619604]
[1723732913898,0.152,59568.0,59567.0,0.619604]
[1723732914094,0.20221915,59568.0,59567.0,0.619604]
[1723732914497,0.162,59568.0,59567.0,0.619604]
[1723732914801,0.21221915,59568.0,59567.0,0.535669]
[1723732915195,0.162,59568.0,59567.0,0.535669]
[1723732918006,0.21221683,59568.0,59567.0,0.619604]
[1723732918307,0.162,59568.0,59567.0,0.619604]
[1723732918702,0.162,59568.0,59567.0,1.207179]
[1723732918902,0.012,59568.0,59567.0,0.619604]
[1723732919097,0.012,59568.0,59567.0,1.123244]
[1723732919299,0.152,59568.0,59567.0,0.703539]
[1723732919492,0.152,59568.0,59567.0,0.819339]
[1723732919802,0.012,59568.0,59567.0,0.819339]
[1723732919997,0.012,59568.0,59567.0,1.444179]
[1723732920199,0.01,59568.0,59567.0,1.844179]
[1723732920400,0.00025167,59575.0,59567.0,1.65880879]
[1723732920699,0.17025167,59575.0,59574.0,0.6965]
[1723732921902,0.17125167,59575.0,59574.0,0.6965]
[1723732922099,0.17225167,59575.0,59574.0,0.6965]
[1723732922300,0.17225167,59575.0,59574.0,0.612575]
[1723732922502,0.17125167,59575.0,59574.0,0.445725]
[1723732922701,0.17125167,59575.0,59574.0,0.084925]
[1723732922702,0.40725167,59575.0,59574.0,0.084925]
[1723732922910,0.40625167,59575.0,59574.0,0.086925]
[1723732923721,0.41373482,59575.0,59574.0,0.086925]
[1723732923915,0.29105167,59575.0,59574.0,0.086925]
[1723732924505,0.29105167,59575.0,59574.0,0.17085]
[1723732926023,0.17025167,59575.0,59574.0,0.17085]
[1723732926419,0.17025167,59575.0,59574.0,0.40925]
[1723732926913,0.17025167,59575.0,59574.0,0.493175]
[1723732927103,0.17025167,59575.0,59574.0,0.40925]
[1723732927306,0.17025167,59575.0,59574.0,0.493175]
[1723732927814,0.17025167,59575.0,59574.0,0.41690369]
[1723732928017,0.17025167,59575.0,59574.0,0.79092869]
[1723732929413,0.17025167,59575.0,59574.0,0.70700369]
[1723732929616,0.17025167,59575.0,59574.0,0.41690369]
[1723732930010,0.17025167,59575.0,59574.0,0.09457869]